bitfinex-derivatives/quotes_ETHF0:USTF0_20250520
["timestamp","ask_amount","ask_price","bid_price","bid_amount"]
[1747744354258,9.17934,2499.1,2499.0,5.9478]
[1747744354551,0.80004,2498.9,2498.8,0.00600709]
[1747744354949,7.80096,2498.9,2498.8,0.00600709]
[1747744355153,9.14216,2498.9,2498.8,2.74600709]
[1747744357653,8.34212,2498.9,2498.6,3.2078]
[1747744357846,0.80014,2498.6,2498.5,9.379]
[1747744358261,2.8013,2498.6,2498.5,12.119]
[1747744358458,2.8013,2498.6,2498.5,15.3268]
[1747744358858,2.8013,2498.6,2498.5,16.644]
[1747744359663,2.8013,2498.6,2498.5,15.3268]
[1747744359856,2.8013,2498.6,2498.5,5.9478]
[1747744360051,0.8002,2498.4,2498.3,9.38500709]
[1747744360363,2.80152,2498.4,2498.3,9.38500709]
[1747744360861,4.10862,2498.4,2498.3,0.00600709]
[1747744362156,4.10862,2498.4,2498.3,2.74600709]
[1747744364963,9.10862,2498.4,2498.3,2.74600709]
[1747744365257,10.21122,2498.4,2498.3,0.00600709]
[1747744366665,4.10862,2498.4,2498.3,0.00600709]
[1747744366861,4.10862,2498.4,2498.3,1.60953084]
[1747744367055,4.10862,2498.4,2498.3,1.30480709]
[1747744367256,4.10862,2498.4,2498.3,4.04480709]
[1747744367452,4.10862,2498.4,2498.3,4.35000433]
[1747744369369,4.10862,2498.4,2498.3,4.4348691]
[1747744371558,4.10862,2498.4,2498.3,4.43486777]
[1747744372066,4.10862,2498.4,2498.3,4.43486958]
[1747744372577,2.80152,2498.4,2498.3,4.43486958]
[1747744373468,2.80152,2498.4,2498.3,4.4348994]
[1747744373862,0.8002,2498.4,2498.3,4.4348994]
[1747744374064,0.8002,2498.4,2498.3,5.6289994]
[1747744374569,0.8002,2498.4,2498.3,17.8115594]
[1747744375670,0.80019,2498.5,2498.4,0.80017]
[1747744375868,2.00005,2499.0,2498.4,2.30571754]
[1747744376174,0.80013,2498.7,2498.6,0.80012]
[1747744376371,0.80013,2498.7,2498.6,13.69314754]
[1747744376673,0.8001,2498.8,2498.7,0.80008]
[1747744376873,0.8001,2498.8,2498.7,4.21018727]
[1747744377171,0.79998,2499.1,2498.9,0.80003]
[1747744377366,2.80086,2499.1,2499.0,9.68540727]
[1747744377671,0.79998,2499.1,2499.0,9.68540727]
[1747744377874,2.80074,2499.1,2499.0,9.68540727]
[1747744378177,2.80074,2499.1,2499.0,12.42540727]
[1747744378370,2.80074,2499.1,2499.0,12.42440727]
[1747744378672,0.79998,2499.1,2499.0,12.12]
[1747744379466,0.79998,2499.1,2499.0,12.119]
[1747744379664,0.79997,2499.2,2499.1,0.79998]
[1747744380074,0.00393391,2499.3,2499.0,15.3268]
[1747744380277,0.79998,2499.2,2499.1,0.79997]
[1747744380470,0.79998,2499.2,2499.1,1.12004266]
[1747744380676,0.79998,2499.2,2499.1,3.12072266]
[1747744380875,0.79998,2499.2,2499.1,3.12073266]
[1747744381175,0.79998,2499.2,2499.1,2.32075266]
[1747744381571,0.79998,2499.2,2499.1,3.12073266]
[1747744381773,0.80387391,2499.3,2499.2,0.79995]
[1747744382082,2.80451391,2499.3,2499.2,0.79995]
[1747744382765,0.00393391,2499.3,2499.2,0.79995]
[1747744383278,0.00393391,2499.3,2499.2,2.80055]
[1747744383575,0.00393391,2499.3,2499.2,7.80055]
[1747744384180,0.00393391,2499.3,2499.2,8.45143599]
[1747744384371,0.80385391,2499.3,2499.2,12.03048599]
[1747744384573,2.80445391,2499.3,2499.2,10.02988599]
[1747744384875,2.80445391,2499.3,2499.2,0.65088599]
[1747744385471,4.10625391,2499.3,2499.2,0.65088599]
[1747744385674,4.10625391,2499.3,2499.2,0.73575076]
[1747744386073,0.79998,2499.1,2499.0,0.49633965]
[1747744386277,0.80014,2498.6,2498.5,0.24730193]
[1747744386478,0.80014,2498.6,2498.5,9.62630193]
[1747744386681,0.80014,2498.6,2498.5,12.83410193]
[1747744386876,0.80014,2498.6,2498.5,15.63542193]
[1747744387182,0.80014,2498.6,2498.5,18.37542193]
[1747744387390,0.80014,2498.6,2498.5,19.64012193]
[1747744388182,0.80014,2498.6,2498.5,19.39282]
[1747744388385,0.80013,2498.7,2498.6,0.80013]
[1747744388881,0.8001,2498.8,2498.7,0.8001]
[1747744389182,0.80013,2498.7,2498.6,3.54013]
[1747744389985,0.80013,2498.7,2498.6,2.74]
[1747744390170,0.80014,2498.6,2498.5,17.63895193]
[1747744390370,0.80014,2498.6,2498.5,17.94426401]
[1747744390574,0.80014,2498.6,2498.5,17.14411401]
[1747744391087,2.8013,2498.6,2498.5,16.77611401]
[1747744391382,2.8013,2498.6,2498.5,13.32101208]
[1747744391582,2.8013,2498.6,2498.5,13.3210465]
[1747744392177,2.8013,2498.6,2498.5,16.5288465]
[1747744393175,2.8013,2498.6,2498.5,16.52885244]
[1747744394079,2.8013,2498.6,2498.5,13.32105244]
[1747744394885,2.8013,2498.6,2498.5,16.52888501]
[1747744396685,0.80014,2498.6,2498.5,16.52897412]
[1747744397283,0.80014,2498.6,2498.5,17.32914412]
[1747744397483,0.80014,2498.6,2498.5,19.33030412]
[1747744397778,0.80009,2498.8,2498.7,0.80008]
[1747744397978,0.80009,2498.8,2498.7,1.10555412]
[1747744398176,0.80009,2498.8,2498.6,3.54012]
[1747744398379,0.80011,2498.7,2498.6,3.54012]
[1747744398580,0.80011,2498.7,2498.6,3.04554975]
[1747744398884,0.80011,2498.7,2498.6,5.84676975]
[1747744399383,0.80011,2498.7,2498.6,3.42687259]
[1747744399884,0.80011,2498.7,2498.6,3.51173736]
[1747744400086,0.80011,2498.7,2498.6,2.71167289]
[1747744400387,0.80011,2498.7,2498.6,3.51181289]
[1747744400685,0.80011,2498.7,2498.6,2.71167289]
[1747744401085,0.80011,2498.7,2498.6,3.51181289]
[1747744401784,0.80011,2498.7,2498.6,2.40604761]
[1747744401984,2.80119,2498.7,2498.6,9.72178677]
[1747744402184,2.80119,2498.7,2498.6,10.52192677]
[1747744402484,2.80119,2498.7,2498.6,11.72286677]
[1747744402485,0.80011,2498.7,2498.6,11.72286677]
[1747744402787,0.80003,2499.0,2498.6,11.72286677]
[1747744402988,0.80003,2499.0,2498.9,4.00782]
[1747744403285,0.80003,2499.0,2498.9,6.25361916]
[1747744403484,0.80003,2499.0,2498.9,8.25455823]
[1747744404885,2.80087,2499.0,2498.9,6.25371823]
[1747744405191,2.80087,2499.0,2498.9,6.253911]
[1747744405384,2.80087,2499.0,2498.9,3.36621384]
[1747744405786,4.17157,2499.0,2498.9,3.36621384]
[1747744406786,4.17157,2499.0,2498.9,3.06010284]
[1747744406989,4.17157,2499.0,2498.9,3.36628105]
[1747744407188,4.17157,2499.0,2498.9,3.04617821]
[1747744408590,4.17157,2499.0,2498.9,3.04611144]
[1747744409989,4.17157,2499.0,2498.9,3.04511144]
[1747744410688,4.17157,2499.0,2498.9,3.04411144]
[1747744411695,4.17157,2499.0,2498.9,3.04311144]
[1747744411892,4.17157,2499.0,2498.9,3.04316401]
[1747744412196,4.17157,2499.0,2498.9,3.04316451]
[1747744412394,4.17157,2499.0,2498.9,3.04216451]
[1747744412997,4.17157,2499.0,2498.9,3.04116451]
[1747744413198,2.80087,2499.0,2498.9,3.04116451]
[1747744413495,2.80087,2499.0,2498.9,3.04016451]
[1747744414297,2.80087,2499.0,2498.9,3.03916451]
[1747744414498,2.80087,2499.0,2498.9,3.03953423]
[1747744415293,2.80087,2499.0,2498.9,3.03957689]
[1747744416100,2.80087,2499.0,2498.9,3.12444166]
[1747744416800,2.80087,2499.0,2498.9,3.44457312]
[1747744416996,2.80087,2499.0,2498.9,3.44458064]
[1747744418697,2.80087,2499.0,2498.9,3.4445987]
[1747744418896,2.80087,2499.0,2498.6,0.24730193]
[1747744418897,0.80011,2498.7,2498.6,0.24730193]
[1747744419204,0.80011,2498.7,2498.6,1.93e-06]
[1747744419398,2.80119,2498.7,2498.6,1.93e-06]
[1747744419597,4.10109,2498.7,2498.6,1.93e-06]
[1747744419804,0.80014,2498.6,2498.5,9.07e-06]
[1747744420001,2.10004,2498.6,2498.5,9.07e-06]
[1747744420301,2.10004,2498.6,2497.9,8.691]
[1747744420302,0.80027,2498.2,2497.8,9.51525461]
[1747744420497,0.80027,2498.2,2497.9,1.2682]
[1747744420697,0.80033,2498.0,2497.9,1.2682]
[1747744421094,0.80033,2498.0,2497.9,7.216]
[1747744423003,2.80197,2498.0,2497.9,7.216]
[1747744424103,2.80197,2498.0,2497.9,4.0082]
[1747744425110,2.80197,2498.0,2497.9,1.2682]
[1747744426008,3.12267883,2498.0,2497.9,1.2682]
[1747744426205,2.80197,2498.0,2497.9,1.2682]
[1747744428209,5.273,2498.3,2497.9,14.70384]
[1747744428408,0.80033,2498.1,2497.9,13.50254]
[1747744428604,0.987652,2498.5,2498.4,0.80021]
[1747744428806,1.787832,2498.5,2498.4,11.9018]
[1747744429010,1.787832,2498.5,2498.4,13.90304]
[1747744429205,1.787832,2498.5,2498.4,8.03390477]
[1747744429411,3.789072,2498.5,2498.4,2.82486477]
[1747744429607,3.789072,2498.5,2498.4,4.17366477]
[1747744430409,3.789072,2498.5,2498.4,6.17490477]
[1747744430410,1.787832,2498.5,2498.4,6.17490477]
[1747744430614,3.2078,2498.7,2498.4,6.17490477]
[1747744430808,0.80014,2498.6,2498.5,0.29523169]
[1747744431110,0.80014,2498.6,2498.5,3.03523169]
[1747744431306,0.80014,2498.6,2498.5,5.03639169]
[1747744432213,0.80014,2498.6,2498.5,5.03639496]
[1747744432414,0.80014,2498.6,2498.5,5.03639461]
[1747744433218,0.80014,2498.6,2498.5,8.24419461]
[1747744435719,0.80014,2498.6,2498.5,8.24435415]
[1747744437214,0.80014,2498.6,2498.5,8.5644777]
[1747744437614,0.80014,2498.6,2498.5,9.3646477]
[1747744437910,0.80014,2498.6,2498.5,8.5644777]
[1747744438818,2.8013,2498.6,2498.5,6.5633177]
[1747744439018,2.8013,2498.6,2498.5,3.3555177]
[1747744439217,2.8013,2498.6,2498.5,3.35556872]
[1747744440923,7.8013,2498.6,2498.5,3.06012355]
[1747744441220,7.8013,2498.6,2498.4,0.08486477]
[1747744441221,0.80017,2498.5,2498.4,0.08486477]
[1747744441422,2.05977,2498.5,2498.4,0.38035196]
[1747744441609,4.06101,2498.5,2498.4,0.38035196]
[1747744441813,4.06101,2498.5,2498.4,0.08486477]
[1747744442013,7.26881,2498.5,2498.4,0.08486477]
[1747744442222,7.26881,2498.5,2497.8,4.96342736]
[1747744442223,0.80037,2497.9,2497.8,4.96342736]
[1747744442429,0.80037,2497.9,2497.8,10.74315118]
[1747744442618,2.80209,2497.9,2497.8,10.74315118]
[1747744442820,2.80209,2497.9,2497.8,10.24792382]
[1747744443123,2.80209,2497.9,2497.8,12.98792382]
[1747744443318,2.80209,2497.9,2497.8,3.03552382]
[1747744443826,3.32982,2498.2,2497.8,8.24504381]
[1747744444016,0.80033,2498.0,2497.9,0.29552382]
[1747744444522,0.80033,2498.0,2497.9,2.29716382]
[1747744445123,0.80033,2498.0,2497.9,5.03716382]
[1747744445325,5.273,2498.5,2498.1,0.8003]
[1747744445518,0.80021,2498.4,2498.3,3.2078]
[1747744445720,0.80021,2498.4,2498.3,4.75261009]
[1747744445923,0.80021,2498.4,2498.3,1.54481009]
[1747744446126,2.80153,2498.4,2498.3,4.28481009]
[1747744446421,2.80153,2498.4,2498.3,3.03551009]
[1747744446927,2.80153,2498.4,2498.3,3.03553816]
[1747744447228,2.80153,2498.4,2498.3,0.29553816]
[1747744448023,2.80153,2498.4,2498.3,3.50333816]
[1747744448337,2.80153,2498.4,2498.3,3.03562123]
[1747744450026,0.80021,2498.4,2498.3,8.24474123]
[1747744450427,2.80153,2498.4,2498.3,6.24344551]
[1747744450829,2.80153,2498.4,2498.3,3.03564551]
[1747744452025,2.80153,2498.4,2498.3,3.03566783]
[1747744453027,2.80153,2498.4,2498.3,4.36676783]
[1747744453228,0.80021,2498.4,2498.3,7.57456783]
[1747744453423,2.00032,2498.7,2498.3,9.57588783]
[1747744453624,0.80015,2498.6,2498.4,2.44344783]
[1747744453825,0.80015,2498.6,2498.5,2.89920274]
[1747744454231,0.80015,2498.6,2498.5,7.64036274]
[1747744454937,2.80131,2498.6,2498.5,4.36680274]
[1747744455232,8.2078,2498.6,2497.3,0.65923791]
[1747744455425,2.00115209,2497.1,2496.4,1.65198212]
[1747744455625,0.80078,2496.6,2496.4,1.65198212]
[1747744455823,0.80078,2496.6,2496.5,9.78227859]
[1747744456025,0.80078,2496.6,2496.5,11.78504359]
[1747744456225,0.80078,2496.6,2496.5,3.14804359]
[1747744456431,0.80078,2496.6,2496.5,11.78504359]
[1747744456830,0.80078,2496.6,2496.5,3.14804359]
[1747744457024,0.80078,2496.6,2496.5,11.78504359]
[1747744457529,0.80078,2496.6,2496.5,10.96016463]
[1747744457729,2.80193209,2496.6,2496.5,0.32039963]
[1747744458525,0.80085,2496.4,2496.3,0.00600709]
[1747744458725,6.00980209,2496.4,2496.3,0.00600709]
[1747744458928,6.00980209,2496.4,2496.3,10.64793209]
[1747744459233,4.00865,2496.4,2496.3,10.64793209]
[1747744459725,6.00980209,2496.4,2496.3,10.73279686]
[1747744459925,6.00980209,2496.4,2496.3,8.72987186]
[1747744460430,6.00980209,2496.4,2496.3,0.09087186]
[1747744462028,6.00980209,2496.4,2495.9,1.2867]
[1747744462029,9.2068,2496.4,2495.3,3.2078]
[1747744462232,9.2068,2496.4,2494.7,0.40378715]
[1747744462233,0.80139,2494.7,2494.3,3.2078]
[1747744462438,5.20895209,2494.9,2494.3,3.2078]
[1747744462624,0.80138,2494.8,2494.6,3.14948859]
[1747744462830,0.80138,2494.8,2494.7,9.142]
[1747744463129,0.80139,2494.7,2494.6,3.14948859]
[1747744463326,0.80139,2494.7,2494.6,10.28727859]
[1747744463527,2.80254209,2494.7,2494.6,1.14527859]
[1747744464326,0.80142,2494.6,2494.5,0.00600709]
[1747744464525,7.32707209,2494.6,2494.5,0.00600709]
[1747744465939,7.32707209,2494.6,2494.5,7.09e-06]
[1747744466237,0.80178,2493.5,2493.4,0.32068781]
[1747744466433,4.00958,2493.5,2493.4,0.32068781]
[1747744466633,2.00395,2494.2,2493.4,2.32594281]
[1747744466634,3.2078,2493.8,2493.4,2.32594281]
[1747744466833,2.80289209,2493.7,2493.4,0.32068781]
[1747744467040,2.00115209,2493.7,2493.4,0.32068781]
[1747744467231,4.00958,2493.5,2493.4,2.32586281]
[1747744467432,3.2078,2493.5,2493.4,0.32068781]
[1747744467630,3.2078,2493.5,2493.4,2.005255]
[1747744467826,3.2078,2493.7,2493.4,11.153255]
[1747744468130,4.00953,2493.7,2493.4,9.94979]
[1747744468434,4.00953,2493.7,2493.4,11.954965]
[1747744468738,3.2078,2493.7,2493.5,9.148]
[1747744468932,0.80178,2493.5,2493.4,0.8018]
[1747744469229,3.2078,2493.7,2493.4,0.80179]
[1747744469438,0.80174,2493.6,2493.5,9.148]
[1747744469632,0.8018,2493.5,2493.3,0.00600709]
[1747744469839,0.8018,2493.5,2493.4,9.15]
[1747744470034,0.80242,2491.5,2491.4,0.6554771]
[1747744470239,4.01022,2491.5,2491.4,0.6554771]
[1747744470535,4.01022,2491.5,2491.4,2.6623421]
[1747744470925,4.01022,2491.5,2491.4,0.6554771]
[1747744471129,6.89642709,2491.5,2491.4,7.1e-06]
[1747744471330,11.89642709,2491.5,2491.4,7.1e-06]
[1747744471539,6.89642709,2491.5,2491.4,7.1e-06]
[1747744472039,0.80255,2491.1,2490.9,9.617]
[1747744472341,6.09400709,2491.1,2490.9,9.617]
[1747744472539,6.89655709,2491.1,2489.9,3.31324]
[1747744472745,3.2078,2491.1,2491.0,2.815077]
[1747744472938,3.2078,2491.1,2491.0,7.012497]
[1747744473233,6.94154509,2491.1,2489.3,7.1e-06]
[1747744473437,0.00602059,2491.7,2489.9,3.2078]
[1747744473438,3.73374509,2490.6,2489.9,3.2078]
[1747744473735,4.53649509,2490.5,2490.0,10.612]
[1747744473939,3.2078,2490.5,2490.0,10.612]
[1747744474236,3.2078,2490.1,2490.0,10.612]
[1747744474436,0.00602059,2490.3,2489.5,1.5983564]
[1747744474637,3.2078,2490.1,2489.6,10.612]
[1747744474834,3.2078,2490.1,2490.0,0.88776477]
[1747744475032,3.2078,2490.1,2490.0,11.49976477]
[1747744475238,3.2078,2490.1,2490.0,17.70485477]
[1747744475437,3.73374509,2490.1,2490.0,17.70485477]
[1747744475634,0.00602059,2490.3,2490.0,17.70485477]
[1747744475941,3.2078,2490.4,2490.3,0.80281]
[1747744476137,3.2078,2490.6,2490.1,40.414]
[1747744476437,6.94154509,2491.0,2490.2,1.3404]
[1747744476739,3.2078,2490.9,2490.3,10.616]
[1747744476939,3.2078,2490.5,2490.4,0.80879059]
[1747744477136,0.00602059,2490.8,2490.4,0.00602059]
[1747744477340,0.80867059,2490.8,2490.4,0.00602059]
[1747744477531,0.80268,2490.7,2490.4,0.00602059]
[1747744477736,4.01048,2490.7,2490.4,0.00602059]
[1747744477936,3.2078,2490.7,2490.4,5.00602059]
[1747744478138,0.80272,2490.6,2490.4,5.00602059]
[1747744478335,3.73374509,2490.5,2490.4,0.00602059]
[1747744478535,3.2078,2490.7,2490.4,5.00602059]
[1747744478943,3.73374509,2490.5,2490.4,5.80878059]
[1747744479145,3.2078,2490.7,2490.4,5.00602059]
[1747744479447,4.0105,2490.7,2490.5,1.3543]
[1747744479745,3.2078,2490.7,2490.5,1.3543]
[1747744480143,3.73374509,2490.6,2490.5,1.3543]
[1747744480740,3.2078,2490.7,2490.5,1.3543]
[1747744480949,3.73374509,2490.6,2490.5,1.3543]
[1747744481142,4.01049,2490.7,2490.5,1.3543]
[1747744481342,3.2078,2490.7,2490.5,6.3543]
[1747744481538,3.2078,2490.7,2490.5,1.3543]
[1747744481734,3.73374509,2490.6,2490.5,1.3543]
[1747744481939,3.2078,2490.7,2490.5,1.3543]
[1747744482236,4.53645509,2490.6,2490.5,1.3543]
[1747744482445,4.0105,2490.7,2490.5,1.3543]
[1747744482749,3.73374509,2490.6,2490.5,1.3543]
[1747744482949,3.73374509,2490.6,2490.5,2.15704]
[1747744483144,4.0105,2490.7,2490.5,2.15703]
[1747744483339,3.73374509,2490.6,2490.5,2.15703]
[1747744483648,4.0105,2490.7,2490.6,0.80271]
[1747744483649,3.2078,2490.7,2490.6,0.80271]
[1747744483844,0.00602059,2490.8,2490.7,0.80268]
[1747744484044,3.2078,2492.3,2492.2,0.80219]
[1747744484236,3.2078,2492.3,2492.2,11.89719]
[1747744484552,7.74370509,2492.3,2492.2,11.095]
[1747744484847,6.94154509,2492.3,2492.2,11.095]
[1747744485046,7.74370509,2492.3,2492.2,11.095]
[1747744486843,7.74370509,2492.3,2492.2,13.10122]
[1747744487051,7.73470509,2492.3,2492.2,13.10122]
[1747744487244,6.93254509,2492.3,2492.2,13.10122]
[1747744487445,6.93254509,2492.3,2492.2,11.095]
[1747744487644,6.93254509,2492.3,2492.2,13.10122]
[1747744487842,6.93254509,2492.3,2492.2,13.90341]
[1747744488149,6.93254509,2492.3,2492.2,11.89719]
[1747744488348,6.93254509,2492.3,2492.2,11.095]
[1747744488548,6.93254509,2492.3,2492.2,13.10122]
[1747744488847,3.73374509,2492.1,2492.0,5.9e-07]
[1747744489042,2.00573,2491.9,2490.8,1.3216]
[1747744489243,3.2078,2491.1,2491.0,0.80258]
[1747744489648,6.94154509,2491.1,2491.0,0.80258]
[1747744489844,3.2078,2491.1,2491.0,0.80258]
[1747744490039,6.94154509,2491.1,2491.0,0.80258]
[1747744490246,3.2078,2491.1,2491.0,0.80258]
[1747744490547,3.2078,2491.9,2491.2,2.0063]
[1747744490746,3.2078,2491.9,2491.7,0.80234]
[1747744490951,6.94154509,2491.9,2491.8,12.6133]
[1747744491250,3.2078,2491.9,2491.8,12.6133]
[1747744491853,6.94154509,2491.9,2491.8,12.6133]
[1747744492345,6.94154509,2491.9,2491.8,15.42216]
[1747744492844,3.2078,2491.9,2491.8,14.61984]
[1747744493245,6.94154509,2491.9,2491.8,14.61984]
[1747744493445,4.01009,2491.9,2491.8,14.61984]
[1747744493640,7.74383509,2491.9,2491.8,14.61984]
[1747744493946,4.01009,2491.9,2491.8,14.61984]
[1747744494649,7.74383509,2491.9,2491.8,14.61984]
[1747744494845,3.2078,2491.9,2491.8,14.61984]
[1747744495244,4.01009,2491.9,2491.8,14.61984]
[1747744496244,4.01009,2491.9,2491.8,12.6133]
[1747744496245,7.74383509,2491.9,2491.8,12.6133]
[1747744496645,4.01009,2491.9,2491.8,12.6133]
[1747744497151,7.74383509,2491.9,2491.8,12.6133]
[1747744497350,4.01009,2491.9,2491.8,12.6133]
[1747744497545,7.74383509,2491.9,2491.8,12.6133]
[1747744498655,4.01009,2491.9,2491.8,12.6133]
[1747744498847,7.74383509,2491.9,2491.8,12.6133]
[1747744499648,4.01009,2491.9,2491.8,12.6133]
[1747744500451,4.01009,2491.9,2491.8,12.93429481]
[1747744500647,7.74383509,2491.9,2491.8,12.93429481]
[1747744500854,7.74383509,2491.9,2491.8,0.32099481]
[1747744500855,12.74383509,2491.9,2491.8,0.32099481]
[1747744501455,14.27983509,2491.9,2491.8,0.32099481]
[1747744502351,0.80242,2491.5,2491.4,1.4527]
[1747744502548,7.74396509,2491.5,2491.4,1.4527]
[1747744503252,4.01022,2491.5,2491.4,3.459565]
[1747744503654,6.94154509,2491.5,2491.2,51.072]
[1747744503859,4.53622509,2491.3,2491.2,40.69520809]
[1747744504158,4.53622509,2491.3,2491.2,51.31420809]
[1747744504458,4.53622509,2491.3,2491.2,51.39907286]
[1747744505759,4.53622509,2491.3,2491.2,51.47893309]
[1747744506756,4.53622509,2491.3,2491.2,51.47793309]
[1747744506952,4.53622509,2491.3,2491.2,40.85893309]
[1747744507160,4.53622509,2491.3,2491.2,51.47793309]
[1747744507465,4.52277621,2491.3,2491.2,0.40593309]
[1747744508160,4.52277621,2491.3,2491.2,0.08486477]
[1747744510757,4.009,2490.6,2488.1,2.40886]
[1747744510960,7.10087558,2489.2,2489.0,1.4592]
[1747744511256,4.01096,2489.2,2489.0,1.4592]
[1747744511658,7.10087558,2489.2,2489.0,12.0822]
[1747744512053,7.10087558,2489.2,2489.0,10.623]
[1747744512252,7.10087558,2489.2,2489.1,0.53966154]
[1747744512459,6.29771558,2489.2,2489.1,2.54838154]
[1747744512655,3.08991558,2489.2,2489.1,0.53966154]
[1747744512853,6.29771558,2489.2,2489.1,11.16266154]
[1747744513050,3.2078,2489.2,2489.1,16.16266154]
[1747744513250,3.08991558,2489.2,2489.1,11.16266154]
[1747744513461,7.10087558,2489.2,2489.1,10.623]
[1747744513650,6.29771558,2489.2,2488.9,1.4729]
[1747744513853,0.80322,2489.0,2488.9,1.4729]
[1747744514057,3.08991558,2489.0,2488.9,1.4729]
[1747744514255,3.08991558,2489.0,2488.9,5.0]
[1747744514451,3.08991558,2489.0,2488.9,5.80326]
[1747744514656,3.08991558,2489.0,2488.9,5.0]
[1747744514867,3.08991558,2489.0,2488.8,1.4729]
[1747744515166,3.2078,2489.2,2488.8,7.27619]
[1747744515167,3.08991558,2488.9,2488.8,7.27619]
[1747744515466,3.08991558,2488.9,2488.8,4.28503]
[1747744515762,3.08991558,2488.9,2488.8,9.28503]
[1747744516064,0.00602059,2489.4,2489.3,0.80313]
[1747744516265,0.00602059,2489.4,2489.3,11.51211558]
[1747744516468,0.00602059,2489.4,2489.3,17.98501558]
[1747744516759,0.00602059,2489.4,2489.3,18.78814558]
[1747744516965,0.00602059,2489.4,2489.3,17.98501558]
[1747744517557,0.00602059,2489.4,2489.3,18.78814558]
[1747744517964,0.80911059,2489.4,2489.3,18.78814558]
[1747744518167,0.80332,2488.7,2484.7,9.29023376]
[1747744518361,3.2078,2488.1,2487.6,1.4201]
[1747744518667,3.2078,2487.8,2487.6,1.4201]
[1747744518867,4.01143,2487.8,2487.6,3.429865]
[1747744519160,0.80364,2487.7,2487.6,3.429865]
[1747744519468,4.01143,2487.8,2487.6,2.09462977]
[1747744519659,0.80364,2487.7,2487.6,2.09462977]
[1747744519860,3.21382059,2488.1,2487.6,17.71962977]
[1747744520061,0.00602059,2488.1,2488.0,0.80355]
[1747744520260,1.3703,2489.0,2488.0,5.217405]
[1747744520261,3.2078,2488.6,2488.0,5.217405]
[1747744520461,3.2078,2488.6,2488.3,0.80343]
[1747744520655,4.01117,2488.6,2488.1,1.3856]
[1747744520969,0.80347,2488.3,2488.2,11.43148]
[1747744521167,0.80347,2488.3,2488.1,2.1891]
[1747744521467,4.01125,2488.3,2488.2,10.628]
[1747744521965,4.01125,2488.3,2488.2,12.637445]
[1747744522264,4.01125,2488.3,2488.2,2.009445]
[1747744523064,5.217245,2488.3,2488.0,10.63402059]
[1747744523269,0.80351,2488.1,2488.0,0.00602059]
[1747744523565,0.80351,2488.1,2488.0,5.9e-07]
[1747744523766,2.813115,2488.1,2488.0,5.9e-07]
[1747744524467,0.80351,2488.1,2488.0,5.9e-07]
[1747744524864,2.813115,2488.1,2488.0,5.9e-07]
[1747744526367,4.298215,2488.1,2488.0,5.9e-07]
[1747744526563,9.298215,2488.1,2488.0,5.9e-07]
[1747744526771,2.813115,2488.1,2488.0,5.9e-07]
[1747744526970,4.298215,2488.1,2488.0,5.9e-07]
[1747744527360,2.28861,2488.1,2488.0,2.00960559]
[1747744527565,0.80351,2488.1,2488.0,2.00960559]
[1747744527765,0.6009,2488.2,2488.0,12.64060559]
[1747744528268,0.6009,2488.2,2488.1,0.80351]
[1747744528768,0.6009,2488.2,2488.1,2.813035]
[1747744528963,0.6009,2488.2,2488.1,7.813035]
[1747744529166,0.6009,2488.2,2488.1,9.277735]
[1747744529667,1.30272059,2488.5,2488.4,0.80342]
[1747744530164,3.2078,2488.9,2488.8,0.80327]
[1747744530370,3.2078,2488.9,2488.8,11.43427]
[1747744530669,1.2962,2489.1,2488.8,17.63996]
[1747744530963,2.09941,2489.1,2488.8,12.63996]
[1747744531164,0.80323,2489.0,2488.9,0.80324]
[1747744531359,2.0994,2489.1,2489.0,0.80322]
[1747744531564,1.2962,2489.1,2489.0,0.80322]
[1747744531764,0.80319,2489.1,2489.0,7.81202]
[1747744531970,0.00602059,2489.2,2489.0,2.0088]
[1747744532376,0.80319,2489.1,2489.0,2.0088]
[1747744532570,0.80319,2489.1,2489.0,2.81202]
[1747744532773,0.80319,2489.1,2489.0,2.0088]
[1747744533367,0.80319,2489.1,2489.0,2.81201]
[1747744533571,0.80919059,2489.2,2489.0,2.81201]
[1747744534169,0.00602059,2489.2,2489.0,2.81201]
[1747744534373,0.80319,2489.1,2489.0,2.81201]
[1747744534670,0.80319,2489.1,2489.0,2.0088]
[1747744535064,0.80319,2489.1,2489.0,2.81202]
[1747744535464,0.80921059,2489.2,2489.1,0.80319]
[1747744535874,0.80921059,2489.2,2489.1,2.81191]
[1747744536172,0.80921059,2489.2,2489.1,2.00872]
[1747744537485,0.80921059,2489.2,2489.1,3.41672]
[1747744537678,0.80921059,2489.2,2489.1,4.21991]
[1747744538475,0.80921059,2489.2,2489.1,3.41672]
[1747744538973,2.19321059,2489.2,2489.1,3.41672]
[1747744539370,2.19321059,2489.2,2489.1,1.408]
[1747744540375,0.80319,2489.1,2489.0,0.08486477]
[1747744540571,47.0572,2489.1,2485.9,4.009]
[1747744540876,3.2078,2488.1,2486.9,1.3569]
[1747744541174,3.2078,2487.5,2487.4,1.4503]
[1747744541372,0.80366,2487.7,2487.4,1.4503]
[1747744541568,3.2078,2487.6,2487.4,1.4503]
[1747744541879,0.00602059,2487.8,2487.5,13.9698]
[1747744542076,0.00602059,2487.8,2487.7,0.80364]
[1747744542276,0.80349,2488.2,2487.7,0.80364]
[1747744542482,4.01123,2488.4,2487.8,16.8202]
[1747744542666,0.80358,2487.9,2487.8,12.2123]
[1747744543072,4.01138,2487.9,2487.8,14.222065]
[1747744543576,0.80358,2487.9,2487.8,14.222065]
[1747744544271,4.01138,2487.9,2487.8,12.2123]
[1747744544578,4.01138,2487.9,2487.8,14.222065]
[1747744544971,6.02114501,2487.9,2487.8,10.762]
[1747744545172,0.80364,2487.7,2487.6,0.33077803]
[1747744545376,0.80364,2487.7,2487.6,10.763]
[1747744545675,3.2078,2487.9,2487.6,12.77292999]
[1747744545870,0.80361,2487.8,2487.7,1.3684]
[1747744546471,0.80361,2487.8,2487.7,3.37825]
[1747744549781,0.80374,2487.4,2487.3,8.62e-06]
[1747744550379,0.80374,2487.4,2487.3,2.01017862]
[1747744550575,0.80374,2487.4,2487.3,2.01017]
[1747744551181,0.80374,2487.4,2487.3,6.55737]